[Event "Hungarian Rapid-ch 2022"]
[Site "Ajka"]
[Date "2022.07.16"]
[Round "5.30"]
[White "Horvath, Kristof"]
[Black "Dobos, Jozsef"]
[Result "1-0"]
[ECO "B01"]
[WhiteElo "2053"]
[BlackElo "2244"]
[Annotator "ChessBase"]
[PlyCount "45"]
[EventDate "2022.07.15"]
[EventType "swiss"]
[EventCountry "HUN"]
[SourceTitle "playchess.com"]
[Source "ChessBase"]
[SourceQuality "1"]
[TimeControl "900+10"]

1. e4 {[%emt 0:00:12]} d5 {[%emt 0:00:28]} 2. exd5 {[%emt 0:00:02]} Nf6 {[%emt 0:00:01]} 3. d4 {[%emt 0:00:01]} Bg4 {[%emt 0:00:20]} 4. Nf3 {[%emt 0:00:54]} Qxd5 {[%emt 0:00:09]} 5. Be2 {[%emt 0:00:07]} e6 {[%emt 0:00:28]} 6. c4 {[%emt 0:00:33]} Qd7 {[%emt 0:01:29]} 7. Nc3 {[%emt 0:02:08]} Nc6 {[%emt 0:00:46]} 8. d5 {[%emt 0:00:39]} exd5 {[%emt 0:00:20]} 9. cxd5 {[%emt 0:00:01]} Bxf3 {[%emt 0:00:44]} 10. Bxf3 {[%emt 0:00:50]} Ne5 {[%emt 0:00:06]} 11. Be2 {[%emt 0:02:33]} Bb4 {[%emt 0:02:20]} 12. Qd4 {[%emt 0:03:24]} Nc6 {[%emt 0:02:01]} 13. Qe3+ {[%emt 0:02:13]} Ne7 {[%emt 0:00:03]} 14. O-O {[%emt 0:00:22]} O-O {[%emt 0:01:08]} 15. Qg3 {[%emt 0:00:52]} Bxc3 {[%emt 0:03:42]} 16. bxc3 {[%emt 0:00:03]} Nfxd5 {[%emt 0:00:02]} 17. c4 {[%emt 0:00:11]} Nf6 {[%emt 0:00:19]} 18. Bb2 {[%emt 0:00:01]} Ng6 {[%emt 0:00:07]} 19. Rad1 {[%emt 0:02:07]} Qf5 {[%emt 0:00:57]} 20. Bd3 {[%emt 0:00:51]} Qf4 {[%emt 0:01:06]} 21. Bxf6 {[%emt 0:00:20]} Qxf6 {[%emt 0:00:19]} 22. Qxc7 {[%emt 0:00:02]} b6 {[%emt 0:00:35]} 23. Rfe1 {[%emt 0:00:02]} 1-0

[Event "Hungarian Rapid-ch 2022"]
[Site "Ajka"]
[Date "2022.07.16"]
[Round "6.1"]
[White "Prohaszka, Peter"]
[Black "Berkes, Ferenc"]
[Result "1/2-1/2"]
[ECO "A06"]
[WhiteElo "2570"]
[BlackElo "2649"]
[Annotator "ChessBase"]
[PlyCount "82"]
[EventDate "2022.07.15"]
[EventType "swiss"]
[EventCountry "HUN"]
[SourceTitle "playchess.com"]
[Source "ChessBase"]
[SourceQuality "1"]
[TimeControl "900+10"]

1. Nf3 {[%emt 0:00:22]} d5 {[%emt 0:00:11]} 2. e3 {[%emt 0:00:01]} g6 {[%emt 0:00:04]} 3. c4 {[%emt 0:00:03]} Nf6 {[%emt 0:00:03]} 4. b3 {[%emt 0:02:12]} Bg7 {[%emt 0:00:03]} 5. Bb2 {[%emt 0:00:01]} O-O {[%emt 0:00:06]} 6. Nc3 {[%emt 0:00:39]} dxc4 {[%emt 0:00:38]} 7. bxc4 {[%emt 0:00:47]} c5 {[%emt 0:00:01]} 8. Be2 {[%emt 0:00:13]} Nc6 {[%emt 0:00:01]} 9. O-O {[%emt 0:00:04]} Bf5 {[%emt 0:00:26]} 10. d3 {[%emt 0:01:40]} Nd7 {[%emt 0:01:50]} 11. Qb3 {[%emt 0:01:47]} Qb6 {[%emt 0:01:05]} 12. Rfd1 {[%emt 0:01:56]} Rad8 {[%emt 0:01:31]} 13. h3 {[%emt 0:00:01]} Qxb3 {[%emt 0:00:22]} 14. axb3 {[%emt 0:00:02]} Ndb8 {[%emt 0:00:02]} 15. Na4 {[%emt 0:02:16]} Bxb2 {[%emt 0:00:02]} 16. Nxb2 {[%emt 0:00:01]} Na6 {[%emt 0:00:03]} 17. Na4 {[%emt 0:00:49]} Kg7 {[%emt 0:00:17]} 18. g4 {[%emt 0:00:43]} Bc8 {[%emt 0:00:02]} 19. d4 {[%emt 0:00:03]} cxd4 {[%emt 0:01:47]} 20. exd4 {[%emt 0:00:26]} e6 {[%emt 0:00:03]} 21. Nc3 {[%emt 0:00:28]} b6 {[%emt 0:01:59]} 22. Nb5 {[%emt 0:00:31]} Bb7 {[%emt 0:00:06]} 23. Ne5 {[%emt 0:00:29]} Na5 {[%emt 0:00:51]} 24. Bf3 {[%emt 0:01:44]} Bxf3 {[%emt 0:02:03]} 25. Nxf3 {[%emt 0:00:02]} Rd7 {[%emt 0:00:05]} 26. Ne5 {[%emt 0:00:15]} Re7 {[%emt 0:00:01]} 27. Nc6 {[%emt 0:00:09]} Nxc6 {[%emt 0:00:05]} 28. Rxa6 {[%emt 0:00:01]} Rd8 {[%emt 0:00:09]} 29. Kg2 {[%emt 0:01:13]} Red7 {[%emt 0:00:29]} 30. Rda1 {[%emt 0:00:41]} Nxd4 {[%emt 0:01:42]} 31. Nxd4 {[%emt 0:00:01]} Rxd4 {[%emt 0:00:02]} 32. Rxa7 {[%emt 0:00:01]} Rf4 {[%emt 0:00:11]} 33. Rb7 {[%emt 0:00:18]} Rd2 {[%emt 0:01:53]} 34. Rf1 {[%emt 0:00:01]} Rb2 {[%emt 0:00:01]} 35. Rxb6 {[%emt 0:00:06]} Rxc4 {[%emt 0:00:02]} 36. Rxe6 {[%emt 0:00:50]} Rxb3 {[%emt 0:00:01]} 37. Ra6 {[%emt 0:00:04]} Rcc3 {[%emt 0:00:47]} 38. Rh1 {[%emt 0:00:06]} Rf3 {[%emt 0:00:01]} 39. Ra2 {[%emt 0:00:05]} Kh6 {[%emt 0:00:24]} 40. Rb2 {[%emt 0:00:13]} Rg3+ {[%emt 0:00:05]} 41. fxg3 {[%emt 0:00:02]} Rxb2+ {[%emt 0:00:01]} 1/2-1/2

[Event "Hungarian Rapid-ch 2022"]
[Site "Ajka"]
[Date "2022.07.16"]
[Round "6.2"]
[White "Gledura, Benjamin"]
[Black "Kozak, Adam"]
[Result "1-0"]
[ECO "E00"]
[WhiteElo "2637"]
[BlackElo "2522"]
[Annotator "ChessBase"]
[PlyCount "67"]
[EventDate "2022.07.15"]
[EventType "swiss"]
[EventCountry "HUN"]
[SourceTitle "playchess.com"]
[Source "ChessBase"]
[SourceQuality "1"]
[TimeControl "900+10"]

1. d4 {[%emt 0:00:13]} Nf6 {[%emt 0:00:17]} 2. c4 {[%emt 0:00:04]} e6 {[%emt 0:00:03]} 3. a3 {[%emt 0:00:05]} d5 {[%emt 0:00:19]} 4. cxd5 {[%emt 0:00:06]} exd5 {[%emt 0:00:05]} 5. Nc3 {[%emt 0:00:03]} c6 {[%emt 0:00:23]} 6. Bf4 {[%emt 0:00:05]} Bd6 {[%emt 0:00:16]} 7. Bxd6 {[%emt 0:00:04]} Qxd6 {[%emt 0:00:02]} 8. e3 {[%emt 0:00:04]} Bf5 {[%emt 0:00:11]} 9. Qf3 {[%emt 0:00:09]} Bg6 {[%emt 0:00:45]} 10. h4 {[%emt 0:00:09]} h6 {[%emt 0:00:54]} 11. Nge2 {[%emt 0:00:11]} Nbd7 {[%emt 0:04:53]} 12. Nf4 {[%emt 0:00:44]} Bh7 {[%emt 0:00:14]} 13. Bd3 {[%emt 0:01:26]} Bxd3 {[%emt 0:00:12]} 14. Nxd3 {[%emt 0:00:02]} O-O-O {[%emt 0:00:42]} 15. b4 {[%emt 0:00:48]} Kb8 {[%emt 0:01:36]} 16. Rb1 {[%emt 0:01:37]} Ka8 {[%emt 0:01:35]} 17. Nc5 {[%emt 0:01:29]} Nxc5 {[%emt 0:00:50]} 18. bxc5 {[%emt 0:00:02]} Qc7 {[%emt 0:00:01]} 19. O-O {[%emt 0:00:21]} Rde8 {[%emt 0:01:15]} 20. Na4 {[%emt 0:05:07]} Ne4 {[%emt 0:01:32]} 21. Rb2 {[%emt 0:00:03]} Re7 {[%emt 0:01:13]} 22. Rfb1 {[%emt 0:00:18]} Qa5 {[%emt 0:00:15]} 23. Qd1 {[%emt 0:00:48]} f5 {[%emt 0:00:41]} 24. Rb4 {[%emt 0:00:06]} Kb8 {[%emt 0:00:29]} 25. Qe1 {[%emt 0:03:56]} Qa6 {[%emt 0:00:11]} 26. R1b3 {[%emt 0:00:09]} Rf8 {[%emt 0:00:18]} 27. Nb2 {[%emt 0:00:24]} f4 {[%emt 0:00:16]} 28. Ra4 {[%emt 0:00:32]} fxe3 {[%emt 0:00:02]} 29. Qxe3 {[%emt 0:00:15]} Qb5 {[%emt 0:00:19]} 30. Rxb5 {[%emt 0:00:02]} cxb5 {[%emt 0:00:01]} 31. Rb4 {[%emt 0:00:05]} Rxf2 {[%emt 0:00:14]} 32. Nd3 {[%emt 0:00:22]} Rf6 {[%emt 0:00:15]} 33. Rxb5 {[%emt 0:00:18]} Kc8 {[%emt 0:00:04]} 34. Ne5 {[%emt 0:00:04]} 1-0

[Event "Hungarian Rapid-ch 2022"]
[Site "Ajka"]
[Date "2022.07.16"]
[Round "6.3"]
[White "Balog, Imre"]
[Black "Korpa, Bence"]
[Result "1-0"]
[ECO "B06"]
[WhiteElo "2594"]
[BlackElo "2537"]
[Annotator "ChessBase"]
[PlyCount "55"]
[EventDate "2022.07.15"]
[EventType "swiss"]
[EventCountry "HUN"]
[SourceTitle "playchess.com"]
[Source "ChessBase"]
[SourceQuality "1"]
[TimeControl "900+10"]

1. d4 {[%emt 0:00:13]} g6 {[%emt 0:00:22]} 2. e4 {[%emt 0:00:17]} Bg7 {[%emt 0:00:03]} 3. Nf3 {[%emt 0:00:02]} d6 {[%emt 0:00:43]} 4. Bc4 {[%emt 0:00:07]} e6 {[%emt 0:00:39]} 5. Qe2 {[%emt 0:00:07]} a6 {[%emt 0:00:12]} 6. a4 {[%emt 0:00:28]} b6 {[%emt 0:00:05]} 7. O-O {[%emt 0:00:07]} Ne7 {[%emt 0:00:08]} 8. c3 {[%emt 0:00:14]} Bb7 {[%emt 0:00:13]} 9. Re1 {[%emt 0:00:03]} h6 {[%emt 0:00:19]} 10. h4 {[%emt 0:00:58]} Nd7 {[%emt 0:01:07]} 11. Nbd2 {[%emt 0:00:07]} Nf6 {[%emt 0:00:55]} 12. Bd3 {[%emt 0:00:10]} O-O {[%emt 0:00:29]} 13. Nf1 {[%emt 0:00:09]} c5 {[%emt 0:00:36]} 14. Ng3 {[%emt 0:00:06]} Ng4 15. h5 {[%emt 0:00:29]} cxd4 {[%emt 0:00:33]} 16. cxd4 {[%emt 0:00:08]} Nc6 {[%emt 0:00:14]} 17. Bd2 {[%emt 0:00:29]} gxh5 {[%emt 0:02:15]} 18. Bc3 {[%emt 0:01:22]} h4 {[%emt 0:01:52]} 19. Nh5 {[%emt 0:00:03]} Bh8 {[%emt 0:00:03]} 20. e5 {[%emt 0:01:08]} dxe5 {[%emt 0:00:08]} 21. dxe5 {[%emt 0:00:04]} Ncxe5 {[%emt 0:06:28]} 22. Nxe5 {[%emt 0:00:18]} Nxe5 {[%emt 0:00:04]} 23. Bxe5 {[%emt 0:00:12]} Bxe5 {[%emt 0:00:53]} 24. Qxe5 {[%emt 0:00:04]} Qg5 {[%emt 0:00:04]} 25. Qxg5+ {[%emt 0:00:45]} hxg5 {[%emt 0:00:03]} 26. Re5 {[%emt 0:00:08]} f6 {[%emt 0:00:38]} 27. Rxe6 {[%emt 0:00:03]} Rad8 {[%emt 0:00:11]} 28. Bc4 {[%emt 0:00:44]} 1-0

[Event "Hungarian Rapid-ch 2022"]
[Site "Ajka"]
[Date "2022.07.16"]
[Round "6.4"]
[White "Hera, Imre Jr."]
[Black "Horvath, Adam"]
[Result "1/2-1/2"]
[ECO "A46"]
[WhiteElo "2568"]
[BlackElo "2520"]
[Annotator "ChessBase"]
[PlyCount "81"]
[EventDate "2022.07.15"]
[EventType "swiss"]
[EventCountry "HUN"]
[SourceTitle "playchess.com"]
[Source "ChessBase"]
[SourceQuality "1"]
[TimeControl "900+10"]

1. d4 {[%emt 0:00:14]} Nf6 {[%emt 0:00:11]} 2. Nf3 {[%emt 0:00:07]} e6 {[%emt 0:00:03]} 3. Bf4 {[%emt 0:00:02]} d5 {[%emt 0:00:08]} 4. e3 {[%emt 0:00:05]} c5 {[%emt 0:00:04]} 5. Nbd2 {[%emt 0:00:05]} Nc6 {[%emt 0:00:03]} 6. c3 {[%emt 0:00:07]} cxd4 {[%emt 0:00:19]} 7. exd4 {[%emt 0:00:04]} Nh5 {[%emt 0:00:03]} 8. Bg5 {[%emt 0:00:16]} f6 {[%emt 0:00:02]} 9. Be3 {[%emt 0:00:01]} g6 {[%emt 0:00:16]} 10. Bb5 {[%emt 0:01:10]} Bd6 {[%emt 0:00:15]} 11. O-O {[%emt 0:00:03]} O-O {[%emt 0:00:02]} 12. Re1 {[%emt 0:00:57]} Bd7 {[%emt 0:00:02]} 13. Bf1 {[%emt 0:00:16]} Ng7 {[%emt 0:00:12]} 14. Nb3 {[%emt 0:00:19]} Nf5 {[%emt 0:02:09]} 15. g3 {[%emt 0:01:43]} b6 {[%emt 0:00:42]} 16. Bd2 {[%emt 0:01:14]} Nce7 {[%emt 0:01:33]} 17. Nc1 {[%emt 0:00:13]} g5 {[%emt 0:00:17]} 18. Nd3 {[%emt 0:00:59]} Ng6 {[%emt 0:00:37]} 19. Be3 {[%emt 0:01:32]} Rc8 {[%emt 0:02:18]} 20. Nd2 {[%emt 0:00:07]} Kg7 {[%emt 0:00:42]} 21. Rc1 {[%emt 0:00:39]} e5 {[%emt 0:00:26]} 22. Qb3 {[%emt 0:03:11]} e4 {[%emt 0:04:00]} 23. Nb4 {[%emt 0:00:01]} Nxe3 {[%emt 0:01:10]} 24. fxe3 {[%emt 0:00:02]} Bxb4 {[%emt 0:01:46]} 25. Qxb4 {[%emt 0:00:01]} Be6 {[%emt 0:00:20]} 26. c4 {[%emt 0:00:06]} Ne7 {[%emt 0:00:05]} 27. cxd5 {[%emt 0:00:25]} Bxd5 {[%emt 0:00:49]} 28. Rxc8 {[%emt 0:01:54]} Nxc8 {[%emt 0:00:01]} 29. Rc1 {[%emt 0:00:31]} Nd6 {[%emt 0:00:08]} 30. b3 {[%emt 0:00:44]} Rf7 {[%emt 0:00:09]} 31. Nb1 {[%emt 0:00:55]} Rc7 {[%emt 0:01:00]} 32. Rxc7+ {[%emt 0:00:06]} Qxc7 {[%emt 0:00:01]} 33. Nc3 {[%emt 0:00:41]} Bf7 {[%emt 0:00:07]} 34. Nb5 {[%emt 0:00:11]} Nxb5 {[%emt 0:00:10]} 35. Qxb5 {[%emt 0:00:05]} Qc1 {[%emt 0:00:12]} 36. Kf2 {[%emt 0:00:15]} Qd1 {[%emt 0:00:29]} 37. Qe2 {[%emt 0:00:17]} Qc1 {[%emt 0:00:06]} 38. Qa6 {[%emt 0:00:04]} Qd1 {[%emt 0:00:13]} 39. Qe2 {[%emt 0:00:35]} Qc1 {[%emt 0:00:07]} 40. Qa6 {[%emt 0:00:04]} Qd1 {[%emt 0:00:17]} 41. Qe2 {[%emt 0:00:17]} 1/2-1/2

[Event "Hungarian Rapid-ch 2022"]
[Site "Ajka"]
[Date "2022.07.16"]
[Round "6.5"]
[White "Csiszar, Csaba"]
[Black "Horvath, Csaba"]
[Result "1-0"]
[ECO "A55"]
[WhiteElo "2389"]
[BlackElo "2506"]
[Annotator "ChessBase"]
[PlyCount "71"]
[EventDate "2022.07.15"]
[EventType "swiss"]
[EventCountry "HUN"]
[SourceTitle "playchess.com"]
[Source "ChessBase"]
[SourceQuality "1"]
[TimeControl "900+10"]

1. d4 {[%emt 0:00:11]} Nf6 {[%emt 0:00:16]} 2. Nf3 {[%emt 0:00:02]} d6 {[%emt 0:00:07]} 3. c4 {[%emt 0:00:05]} Nbd7 {[%emt 0:00:02]} 4. Nc3 {[%emt 0:00:12]} e5 {[%emt 0:00:01]} 5. e4 {[%emt 0:00:53]} c6 {[%emt 0:00:27]} 6. Be2 {[%emt 0:00:04]} Be7 {[%emt 0:00:06]} 7. O-O {[%emt 0:00:03]} a6 {[%emt 0:00:03]} 8. a3 {[%emt 0:00:15]} b5 {[%emt 0:00:18]} 9. b4 {[%emt 0:00:05]} bxc4 {[%emt 0:01:42]} 10. Bxc4 {[%emt 0:00:06]} O-O {[%emt 0:00:22]} 11. h3 {[%emt 0:00:30]} a5 {[%emt 0:00:57]} 12. b5 {[%emt 0:00:42]} Nb6 {[%emt 0:00:50]} 13. Bd3 {[%emt 0:00:07]} cxb5 {[%emt 0:00:31]} 14. Nxb5 {[%emt 0:00:30]} Nfd7 {[%emt 0:02:49]} 15. Re1 {[%emt 0:00:34]} Bb7 {[%emt 0:00:51]} 16. Rb1 {[%emt 0:01:31]} a4 {[%emt 0:00:50]} 17. Bb2 {[%emt 0:01:02]} Qb8 {[%emt 0:01:27]} 18. Bc3 {[%emt 0:01:24]} Rc8 {[%emt 0:00:14]} 19. Bb4 {[%emt 0:00:41]} Bf8 {[%emt 0:00:37]} 20. Qe2 {[%emt 0:00:30]} exd4 {[%emt 0:00:33]} 21. Nfxd4 {[%emt 0:00:37]} Nc5 {[%emt 0:00:10]} 22. Bc2 {[%emt 0:00:55]} Re8 {[%emt 0:00:24]} 23. Qg4 {[%emt 0:01:22]} Nbd7 {[%emt 0:00:30]} 24. Nf5 {[%emt 0:01:42]} g6 {[%emt 0:00:07]} 25. Bc3 {[%emt 0:00:18]} h5 {[%emt 0:01:51]} 26. Qg5 {[%emt 0:00:58]} Kh7 {[%emt 0:00:03]} 27. e5 {[%emt 0:00:30]} dxe5 {[%emt 0:00:23]} 28. Nbd6 {[%emt 0:00:29]} Ne6 {[%emt 0:00:27]} 29. Qd2 {[%emt 0:00:41]} Ndc5 {[%emt 0:01:36]} 30. Bxe5 {[%emt 0:00:54]} Rd8 {[%emt 0:01:02]} 31. Qe2 {[%emt 0:00:01]} Qa7 {[%emt 0:00:29]} 32. Rxb7 {[%emt 0:00:44]} Nxb7 {[%emt 0:00:01]} 33. Qxh5+ {[%emt 0:00:17]} gxh5 {[%emt 0:00:10]} 34. Ne7+ {[%emt 0:00:01]} f5 {[%emt 0:00:22]} 35. Bxf5+ {[%emt 0:00:03]} Kh6 {[%emt 0:00:05]} 36. Nf7# {[%emt 0:00:02]} 1-0

[Event "Hungarian Rapid-ch 2022"]
[Site "Ajka"]
[Date "2022.07.16"]
[Round "6.6"]
[White "Krstulovic, Alex"]
[Black "Vertetics, Attila"]
[Result "1/2-1/2"]
[ECO "A46"]
[WhiteElo "2413"]
[BlackElo "2465"]
[Annotator "ChessBase"]
[PlyCount "75"]
[EventDate "2022.07.15"]
[EventType "swiss"]
[EventCountry "HUN"]
[SourceTitle "playchess.com"]
[Source "ChessBase"]
[SourceQuality "1"]
[TimeControl "900+10"]

1. d4 {[%emt 0:00:12]} Nf6 {[%emt 0:00:11]} 2. Nf3 {[%emt 0:00:01]} e6 {[%emt 0:00:01]} 3. Bf4 {[%emt 0:00:01]} d5 {[%emt 0:00:01]} 4. e3 {[%emt 0:00:01]} c5 {[%emt 0:00:02]} 5. Nbd2 {[%emt 0:00:01]} Nc6 {[%emt 0:00:02]} 6. c3 {[%emt 0:00:01]} cxd4 {[%emt 0:00:02]} 7. exd4 {[%emt 0:00:02]} Nh5 {[%emt 0:00:02]} 8. Be3 {[%emt 0:00:06]} Bd6 {[%emt 0:00:01]} 9. Ne5 {[%emt 0:00:01]} g6 {[%emt 0:00:03]} 10. Nd3 {[%emt 0:00:02]} Ng7 {[%emt 0:00:12]} 11. g3 {[%emt 0:00:05]} Nf5 {[%emt 0:00:11]} 12. Bf4 {[%emt 0:00:12]} O-O {[%emt 0:00:35]} 13. Bg2 {[%emt 0:00:02]} f6 {[%emt 0:00:24]} 14. O-O {[%emt 0:01:00]} Kh8 {[%emt 0:00:52]} 15. Re1 {[%emt 0:00:15]} Qc7 {[%emt 0:00:52]} 16. Bxd6 {[%emt 0:00:20]} Qxd6 {[%emt 0:00:10]} 17. f4 {[%emt 0:00:01]} b6 {[%emt 0:00:20]} 18. Nf3 {[%emt 0:00:05]} h5 {[%emt 0:00:26]} 19. Qd2 {[%emt 0:00:37]} Bd7 {[%emt 0:00:18]} 20. Rad1 {[%emt 0:01:07]} Kg7 {[%emt 0:00:23]} 21. Qf2 {[%emt 0:00:08]} Nce7 {[%emt 0:00:16]} 22. h3 {[%emt 0:00:17]} Nh6 {[%emt 0:00:06]} 23. Nh2 {[%emt 0:01:18]} Rae8 {[%emt 0:01:25]} 24. g4 {[%emt 0:00:43]} hxg4 {[%emt 0:00:04]} 25. hxg4 {[%emt 0:00:03]} Bb5 {[%emt 0:03:03]} 26. Qg3 {[%emt 0:00:16]} g5 {[%emt 0:00:30]} 27. Qe3 {[%emt 0:02:55]} Ng6 {[%emt 0:00:26]} 28. fxg5 {[%emt 0:00:36]} Qxh2+ {[%emt 0:00:01]} 29. Kxh2 {[%emt 0:00:01]} Nxg4+ {[%emt 0:00:02]} 30. Kg1 {[%emt 0:00:47]} Nxe3 {[%emt 0:00:02]} 31. gxf6+ {[%emt 0:00:11]} Rxf6 {[%emt 0:00:02]} 32. Rxe3 {[%emt 0:00:02]} Bxd3 {[%emt 0:00:08]} 33. Rdxd3 {[%emt 0:00:29]} Nf4 {[%emt 0:00:01]} 34. Rg3+ {[%emt 0:00:02]} Kf7 {[%emt 0:00:02]} 35. Rde3 {[%emt 0:00:03]} Rg6 {[%emt 0:01:48]} 36. Kf2 {[%emt 0:01:14]} Rxg3 {[%emt 0:00:30]} 37. Rxg3 {[%emt 0:00:26]} Nxg2 {[%emt 0:01:15]} 38. Kxg2 {[%emt 0:00:26]} 1/2-1/2

[Event "Hungarian Rapid-ch 2022"]
[Site "Ajka"]
[Date "2022.07.16"]
[Round "6.7"]
[White "Leviczky, Tibor"]
[Black "Mihok, Oliver"]
[Result "1-0"]
[ECO "E81"]
[WhiteElo "2281"]
[BlackElo "2549"]
[Annotator "ChessBase"]
[PlyCount "87"]
[EventDate "2022.07.15"]
[EventType "swiss"]
[EventCountry "HUN"]
[SourceTitle "playchess.com"]
[Source "ChessBase"]
[SourceQuality "1"]
[TimeControl "900+10"]

1. d4 {[%emt 0:00:13]} Nf6 {[%emt 0:00:12]} 2. c4 {[%emt 0:00:01]} g6 {[%emt 0:00:02]} 3. Nc3 {[%emt 0:00:02]} Bg7 {[%emt 0:00:01]} 4. e4 {[%emt 0:00:01]} d6 {[%emt 0:00:01]} 5. f3 {[%emt 0:00:02]} O-O {[%emt 0:00:11]} 6. Bg5 {[%emt 0:00:03]} c5 {[%emt 0:00:10]} 7. d5 {[%emt 0:00:01]} e6 {[%emt 0:00:11]} 8. Qd2 {[%emt 0:00:09]} exd5 {[%emt 0:00:04]} 9. cxd5 {[%emt 0:00:02]} a6 {[%emt 0:00:10]} 10. a4 {[%emt 0:00:02]} h6 {[%emt 0:00:16]} 11. Be3 {[%emt 0:00:04]} Re8 {[%emt 0:00:47]} 12. Nge2 {[%emt 0:00:15]} Nbd7 {[%emt 0:00:39]} 13. Nd1 {[%emt 0:01:18]} Ne5 {[%emt 0:01:53]} 14. Nec3 {[%emt 0:00:04]} Nh7 {[%emt 0:01:23]} 15. Nf2 {[%emt 0:00:19]} h5 {[%emt 0:00:09]} 16. Be2 {[%emt 0:00:05]} Rb8 {[%emt 0:00:31]} 17. O-O {[%emt 0:00:27]} Bd7 {[%emt 0:00:29]} 18. a5 {[%emt 0:00:40]} f5 {[%emt 0:00:34]} 19. Rfb1 {[%emt 0:03:01]} Qf6 {[%emt 0:01:16]} 20. Ra3 {[%emt 0:00:32]} Rbc8 {[%emt 0:01:03]} 21. Rb3 {[%emt 0:00:53]} Rc7 {[%emt 0:00:18]} 22. Rb6 {[%emt 0:00:10]} Qf8 {[%emt 0:00:24]} 23. f4 {[%emt 0:01:46]} Ng4 {[%emt 0:00:40]} 24. Bxg4 {[%emt 0:01:04]} hxg4 {[%emt 0:00:18]} 25. e5 {[%emt 0:00:36]} dxe5 {[%emt 0:00:01]} 26. Rxg6 {[%emt 0:00:05]} e4 {[%emt 0:00:56]} 27. Rb6 {[%emt 0:00:39]} Nf6 {[%emt 0:01:00]} 28. d6 {[%emt 0:00:35]} Rc6 {[%emt 0:00:05]} 29. Rxc6 {[%emt 0:00:53]} Bxc6 {[%emt 0:00:04]} 30. Bxc5 {[%emt 0:00:38]} Qf7 {[%emt 0:00:10]} 31. b4 {[%emt 0:00:58]} Nh5 {[%emt 0:01:14]} 32. Ne2 {[%emt 0:00:52]} Qe6 {[%emt 0:00:32]} 33. Nd1 {[%emt 0:00:22]} e3 {[%emt 0:00:28]} 34. Nxe3 {[%emt 0:00:55]} Nf6 {[%emt 0:00:09]} 35. Ng3 {[%emt 0:00:52]} Ne4 {[%emt 0:00:44]} 36. Nxe4 {[%emt 0:00:07]} Qxe4 {[%emt 0:00:01]} 37. Re1 {[%emt 0:00:42]} Qxf4 {[%emt 0:00:47]} 38. Rf1 {[%emt 0:00:20]} Qe4 {[%emt 0:00:19]} 39. Nxf5 {[%emt 0:00:16]} Bf6 {[%emt 0:01:07]} 40. Ne7+ {[%emt 0:00:23]} Bxe7 {[%emt 0:00:49]} 41. dxe7 {[%emt 0:00:04]} Kh7 {[%emt 0:00:08]} 42. Rf6 {[%emt 0:00:44]} Qb1+ {[%emt 0:00:55]} 43. Kf2 {[%emt 0:00:05]} Kg8 {[%emt 0:00:20]} 44. Qg5+ 1-0

[Event "Hungarian Rapid-ch 2022"]
[Site "Ajka"]
[Date "2022.07.16"]
[Round "6.8"]
[White "Kassay, Krisztian"]
[Black "Czebe, Attila"]
[Result "0-1"]
[ECO "A41"]
[WhiteElo "2157"]
[BlackElo "2385"]
[Annotator "ChessBase"]
[PlyCount "52"]
[EventDate "2022.07.15"]
[EventType "swiss"]
[EventCountry "HUN"]
[SourceTitle "playchess.com"]
[Source "ChessBase"]
[SourceQuality "1"]
[TimeControl "900+10"]

1. d4 {[%emt 0:00:13]} d6 {[%emt 0:00:16]} 2. Nf3 {[%emt 0:00:33]} g6 {[%emt 0:00:05]} 3. Bf4 {[%emt 0:00:25]} Bg7 {[%emt 0:00:03]} 4. e3 {[%emt 0:00:02]} Nd7 {[%emt 0:00:06]} 5. Be2 {[%emt 0:00:25]} e5 {[%emt 0:00:22]} 6. Bg3 {[%emt 0:00:13]} Ne7 {[%emt 0:00:32]} 7. h3 {[%emt 0:01:01]} Nf5 {[%emt 0:00:34]} 8. Bh2 {[%emt 0:00:07]} exd4 {[%emt 0:00:07]} 9. exd4 {[%emt 0:00:11]} O-O {[%emt 0:00:04]} 10. O-O {[%emt 0:00:10]} Nb6 {[%emt 0:00:17]} 11. c3 {[%emt 0:00:23]} Be6 {[%emt 0:00:01]} 12. Nbd2 {[%emt 0:00:11]} a5 {[%emt 0:01:36]} 13. Ne4 {[%emt 0:02:40]} a4 {[%emt 0:00:51]} 14. Bf4 h6 {[%emt 0:03:01]} 15. Bd3 {[%emt 0:01:45]} Nh4 {[%emt 0:00:51]} 16. Nxh4 {[%emt 0:02:04]} Qxh4 {[%emt 0:00:02]} 17. Qf3 {[%emt 0:00:26]} f5 {[%emt 0:02:25]} 18. Nd2 {[%emt 0:01:41]} Bd5 {[%emt 0:00:03]} 19. Bg3 {[%emt 0:01:19]} Qg5 {[%emt 0:02:37]} 20. Bc4 {[%emt 0:01:12]} Bxc4 {[%emt 0:00:13]} 21. Nxc4 {[%emt 0:00:02]} Nxc4 {[%emt 0:00:03]} 22. Qd5+ {[%emt 0:00:01]} Kh7 {[%emt 0:00:02]} 23. Qxc4 {[%emt 0:00:37]} f4 {[%emt 0:00:02]} 24. Bh2 {[%emt 0:00:32]} f3 {[%emt 0:00:03]} 25. g3 {[%emt 0:00:26]} Qh5 {[%emt 0:00:44]} 26. Qe6 {[%emt 0:00:40]} Rf5 {[%emt 0:00:23]} 0-1

[Event "Hungarian Rapid-ch 2022"]
[Site "Ajka"]
[Date "2022.07.16"]
[Round "6.9"]
[White "Csonka, Balazs"]
[Black "Egresi, Mate"]
[Result "1/2-1/2"]
[ECO "D02"]
[WhiteElo "2495"]
[BlackElo "2376"]
[Annotator "ChessBase"]
[PlyCount "57"]
[EventDate "2022.07.15"]
[EventType "swiss"]
[EventCountry "HUN"]
[SourceTitle "playchess.com"]
[Source "ChessBase"]
[SourceQuality "1"]
[TimeControl "900+10"]

1. d4 {[%emt 0:00:12]} d5 {[%emt 0:00:11]} 2. Nf3 {[%emt 0:00:14]} Nf6 {[%emt 0:00:02]} 3. Bf4 {[%emt 0:00:31]} c5 {[%emt 0:00:04]} 4. e3 {[%emt 0:00:01]} Nc6 {[%emt 0:00:01]} 5. Nbd2 {[%emt 0:00:02]} Nh5 {[%emt 0:00:03]} 6. Be5 {[%emt 0:01:12]} f6 {[%emt 0:00:35]} 7. c4 {[%emt 0:00:01]} e6 {[%emt 0:02:32]} 8. cxd5 {[%emt 0:06:00]} exd5 {[%emt 0:00:03]} 9. Bg3 {[%emt 0:00:02]} Nxg3 {[%emt 0:00:34]} 10. hxg3 {[%emt 0:00:02]} cxd4 {[%emt 0:00:08]} 11. Nxd4 {[%emt 0:00:06]} Nxd4 {[%emt 0:00:10]} 12. exd4 {[%emt 0:00:02]} g6 {[%emt 0:01:48]} 13. Bd3 {[%emt 0:00:27]} Kf7 {[%emt 0:00:05]} 14. Qc2 {[%emt 0:01:42]} Kg7 {[%emt 0:00:04]} 15. Kf1 {[%emt 0:02:18]} Be6 {[%emt 0:01:12]} 16. Re1 {[%emt 0:01:30]} Bf7 {[%emt 0:00:37]} 17. Qb3 {[%emt 0:01:05]} Qd7 {[%emt 0:01:05]} 18. Nb1 {[%emt 0:00:14]} Bd6 {[%emt 0:02:48]} 19. Nc3 {[%emt 0:00:12]} a6 {[%emt 0:00:03]} 20. Be2 {[%emt 0:01:18]} Bb8 {[%emt 0:02:45]} 21. Bf3 {[%emt 0:00:18]} Rd8 {[%emt 0:00:33]} 22. Bxd5 {[%emt 0:00:46]} Bxd5 {[%emt 0:00:02]} 23. Nxd5 {[%emt 0:00:02]} Qxd5 {[%emt 0:00:01]} 24. Re7+ {[%emt 0:00:04]} Kf8 {[%emt 0:00:01]} 25. Qxd5 {[%emt 0:00:33]} Rxd5 {[%emt 0:00:02]} 26. Rhxh7 {[%emt 0:00:03]} Bd6 {[%emt 0:00:45]} 27. Rhf7+ {[%emt 0:00:29]} Kg8 {[%emt 0:00:05]} 28. Rg7+ {[%emt 0:00:02]} Kf8 {[%emt 0:00:36]} 29. Rgf7+ {[%emt 0:00:12]} 1/2-1/2